{"text_format":"3","workbook":"xlsx","n_sheets":4,"sheets":["ملخص ميزانية أول السنة لتاريخه","ملخص المصروفات الشهرية","ملخص مفصل بالمصروفات","التبرعات والرعايات الرسمية"],"not_rendered":{"defined_names":8,"comments":2},"read":"whole","date_system":"1900"}

{"sheet":"ملخص ميزانية أول السنة لتاريخه","index":0,"n_rows":30,"n_cols":6,"rows_kept":30,"merged":[[1,0,1,5]]}
[]
["ميزانية عام 2005 الفعلية مقابل ميزانية أول السنة لتاريخه"]
[]
["رمز دفتر الأستاذ العام","عنوان الحساب","الفعلية","الميزانية","المتبقي ر.س","نسبة المتبقي المئوية"]
[]
[1000,"الإعلان",{"$f":"'ملخص المصروفات الشهرية'!O6","v":{"v":750.75,"d":"ر.س750.75"}},{"v":100000,"d":"ر.س100,000.00"},{"$f":"SUM(+D6-C6)","v":{"v":99249.25,"d":"ر.س99,249.25"}},{"$f":"SUM(E6/D6)","v":0.9924925}]
[]
[2000,"أجهزة المكتب",{"$f":"'ملخص المصروفات الشهرية'!O8","v":0},{"v":100000,"d":"ر.س100,000.00"},{"$f":"SUM(+D8-C8)","v":{"v":100000,"d":"ر.س100,000.00"}},{"$f":"SUM(E8/D8)","v":1}]
[]
[3000,"الطابعات",{"$f":"'ملخص المصروفات الشهرية'!O10","v":0},{"v":100000,"d":"ر.س100,000.00"},{"$f":"SUM(+D10-C10)","v":{"v":100000,"d":"ر.س100,000.00"}},{"$f":"SUM(E10/D10)","v":1}]
[]
[4000,"تكاليف الملقم",{"$f":"'ملخص المصروفات الشهرية'!O12","v":0},{"v":100000,"d":"ر.س100,000.00"},{"$f":"SUM(+D12-C12)","v":{"v":100000,"d":"ر.س100,000.00"}},{"$f":"SUM(E12/D12)","v":1}]
[]
[5000,"الموارد",{"$f":"'ملخص المصروفات الشهرية'!O14","v":0},{"v":50000,"d":"ر.س50,000.00"},{"$f":"SUM(+D14-C14)","v":{"v":50000,"d":"ر.س50,000.00"}},{"$f":"SUM(E14/D14)","v":1}]
[]
[6000,"مصروفات العملاء",{"$f":"'ملخص المصروفات الشهرية'!O16","v":0},{"v":25000,"d":"ر.س25,000.00"},{"$f":"SUM(+D16-C16)","v":{"v":25000,"d":"ر.س25,000.00"}},{"$f":"SUM(E16/D16)","v":1}]
[]
[7000,"أجهزة الكمبيوتر",{"$f":"'ملخص المصروفات الشهرية'!O18","v":{"v":2500,"d":"ر.س2,500.00"}},{"v":75000,"d":"ر.س75,000.00"},{"$f":"SUM(+D18-C18)","v":{"v":72500,"d":"ر.س72,500.00"}},{"$f":"SUM(E18/D18)","v":0.9666666666666667}]
[]
[8000,"خطة الرعاية الصحية",{"$f":"'ملخص المصروفات الشهرية'!O20","v":0},{"v":65000,"d":"ر.س65,000.00"},{"$f":"SUM(+D20-C20)","v":{"v":65000,"d":"ر.س65,000.00"}},{"$f":"SUM(E20/D20)","v":1}]
[]
[9000,"تكاليف الإنشاء",{"$f":"'ملخص المصروفات الشهرية'!O22","v":0},{"v":125000,"d":"ر.س125,000.00"},{"$f":"SUM(+D22-C22)","v":{"v":125000,"d":"ر.س125,000.00"}},{"$f":"SUM(E22/D22)","v":1}]
[]
[10000,"التسويق",{"$f":"'ملخص المصروفات الشهرية'!O24","v":0},{"v":100000,"d":"ر.س100,000.00"},{"$f":"SUM(+D24-C24)","v":{"v":100000,"d":"ر.س100,000.00"}},{"$f":"SUM(E24/D24)","v":1}]
[]
[11000,"التبرعات",{"$f":"'ملخص المصروفات الشهرية'!O26","v":{"v":2500,"d":"ر.س2,500.00"}},{"v":250000,"d":"ر.س250,000.00"},{"$f":"SUM(+D26-C26)","v":{"v":247500,"d":"ر.س247,500.00"}},{"$f":"SUM(E26/D26)","v":0.99}]
[]
[12000,"الرعايات الرسمية",{"$f":"'ملخص المصروفات الشهرية'!O28","v":{"v":1000,"d":"ر.س1,000.00"}},{"v":50000,"d":"ر.س50,000.00"},{"$f":"SUM(+D28-C28)","v":{"v":49000,"d":"ر.س49,000.00"}},{"$f":"SUM(E28/D28)","v":0.98}]
[]
[null,"الإجمالي",{"$f":"SUM(C6:C28)","v":{"v":6750.75,"d":"ر.س6,750.75"}},{"$f":"SUM(D6:D28)","v":{"v":1140000,"d":"ر.س1,140,000.00"}},{"$f":"SUM(E6:E28)","v":{"v":1133249.25,"d":"ر.س1,133,249.25"}},{"$f":"SUM(E30/D30)","v":0.9940782894736843}]

{"sheet":"ملخص المصروفات الشهرية","index":1,"n_rows":30,"n_cols":15,"rows_kept":30,"merged":[[1,0,1,14]]}
[]
["المصروفات الشهرية لعام 2005"]
[]
["رمز دفتر الأستاذ العام","عنوان الحساب","2005-01-01","2005-02-05","2005-03-05","2005-04-05","2005-05-05","2005-06-05","2005-07-05","2005-08-05","2005-09-05","2005-10-05","2005-11-05","2005-12-05",2005]
[]
[1000,"الإعلان",{"$f":"SUMIF('التبرعات والرعايات الرسمية'!$L:$L,\"=\"&($A6&TEXT(C$4,\"mmm-yy\")),'التبرعات والرعايات الرسمية'!$D:$D)+SUMIF('ملخص مفصل بالمصروفات'!$J:$J,\"=\"&($A6&TEXT(C$4,\"mmm-yy\")),'ملخص مفصل بالمصروفات'!$E:$E)","v":{"v":750.75,"d":"ر.س750.75"}},{"$f":"SUMIF('التبرعات والرعايات الرسمية'!$L:$L,\"=\"&($A6&TEXT(D$4,\"mmm-yy\")),'التبرعات والرعايات الرسمية'!$D:$D)+SUMIF('ملخص مفصل بالمصروفات'!$J:$J,\"=\"&($A6&TEXT(D$4,\"mmm-yy\")),'ملخص مفصل بالمصروفات'!$E:$E)","v":0},{"$f":"SUMIF('التبرعات والرعايات الرسمية'!$L:$L,\"=\"&($A6&TEXT(E$4,\"mmm-yy\")),'التبرعات والرعايات الرسمية'!$D:$D)+SUMIF('ملخص مفصل بالمصروفات'!$J:$J,\"=\"&($A6&TEXT(E$4,\"mmm-yy\")),'ملخص مفصل بالمصروفات'!$E:$E)","v":0},{"$f":"SUMIF('التبرعات والرعايات الرسمية'!$L:$L,\"=\"&($A6&TEXT(F$4,\"mmm-yy\")),'التبرعات والرعايات الرسمية'!$D:$D)+SUMIF('ملخص مفصل بالمصروفات'!$J:$J,\"=\"&($A6&TEXT(F$4,\"mmm-yy\")),'ملخص مفصل بالمصروفات'!$E:$E)","v":0},{"$f":"SUMIF('التبرعات والرعايات الرسمية'!$L:$L,\"=\"&($A6&TEXT(G$4,\"mmm-yy\")),'التبرعات والرعايات الرسمية'!$D:$D)+SUMIF('ملخص مفصل بالمصروفات'!$J:$J,\"=\"&($A6&TEXT(G$4,\"mmm-yy\")),'ملخص مفصل بالمصروفات'!$E:$E)","v":0},{"$f":"SUMIF('التبرعات والرعايات الرسمية'!$L:$L,\"=\"&($A6&TEXT(H$4,\"mmm-yy\")),'التبرعات والرعايات الرسمية'!$D:$D)+SUMIF('ملخص مفصل بالمصروفات'!$J:$J,\"=\"&($A6&TEXT(H$4,\"mmm-yy\")),'ملخص مفصل بالمصروفات'!$E:$E)","v":0},{"$f":"SUMIF('التبرعات والرعايات الرسمية'!$L:$L,\"=\"&($A6&TEXT(I$4,\"mmm-yy\")),'التبرعات والرعايات الرسمية'!$D:$D)+SUMIF('ملخص مفصل بالمصروفات'!$J:$J,\"=\"&($A6&TEXT(I$4,\"mmm-yy\")),'ملخص مفصل بالمصروفات'!$E:$E)","v":0},{"$f":"SUMIF('التبرعات والرعايات الرسمية'!$L:$L,\"=\"&($A6&TEXT(J$4,\"mmm-yy\")),'التبرعات والرعايات الرسمية'!$D:$D)+SUMIF('ملخص مفصل بالمصروفات'!$J:$J,\"=\"&($A6&TEXT(J$4,\"mmm-yy\")),'ملخص مفصل بالمصروفات'!$E:$E)","v":0},{"$f":"SUMIF('التبرعات والرعايات الرسمية'!$L:$L,\"=\"&($A6&TEXT(K$4,\"mmm-yy\")),'التبرعات والرعايات الرسمية'!$D:$D)+SUMIF('ملخص مفصل بالمصروفات'!$J:$J,\"=\"&($A6&TEXT(K$4,\"mmm-yy\")),'ملخص مفصل بالمصروفات'!$E:$E)","v":0},{"$f":"SUMIF('التبرعات والرعايات الرسمية'!$L:$L,\"=\"&($A6&TEXT(L$4,\"mmm-yy\")),'التبرعات والرعايات الرسمية'!$D:$D)+SUMIF('ملخص مفصل بالمصروفات'!$J:$J,\"=\"&($A6&TEXT(L$4,\"mmm-yy\")),'ملخص مفصل بالمصروفات'!$E:$E)","v":0},{"$f":"SUMIF('التبرعات والرعايات الرسمية'!$L:$L,\"=\"&($A6&TEXT(M$4,\"mmm-yy\")),'التبرعات والرعايات الرسمية'!$D:$D)+SUMIF('ملخص مفصل بالمصروفات'!$J:$J,\"=\"&($A6&TEXT(M$4,\"mmm-yy\")),'ملخص مفصل بالمصروفات'!$E:$E)","v":0},{"$f":"SUMIF('التبرعات والرعايات الرسمية'!$L:$L,\"=\"&($A6&TEXT(N$4,\"mmm-yy\")),'التبرعات والرعايات الرسمية'!$D:$D)+SUMIF('ملخص مفصل بالمصروفات'!$J:$J,\"=\"&($A6&TEXT(N$4,\"mmm-yy\")),'ملخص مفصل بالمصروفات'!$E:$E)","v":0},{"$f":"SUM(C6:N6)","v":{"v":750.75,"d":"ر.س750.75"}}]
[]
[2000,"أجهزة المكتب",{"$f":"SUMIF('التبرعات والرعايات الرسمية'!$L:$L,\"=\"&($A8&TEXT(C$4,\"mmm-yy\")),'التبرعات والرعايات الرسمية'!$D:$D)+SUMIF('ملخص مفصل بالمصروفات'!$J:$J,\"=\"&($A8&TEXT(C$4,\"mmm-yy\")),'ملخص مفصل بالمصروفات'!$E:$E)","v":0},{"$f":"SUMIF('التبرعات والرعايات الرسمية'!$L:$L,\"=\"&($A8&TEXT(D$4,\"mmm-yy\")),'التبرعات والرعايات الرسمية'!$D:$D)+SUMIF('ملخص مفصل بالمصروفات'!$J:$J,\"=\"&($A8&TEXT(D$4,\"mmm-yy\")),'ملخص مفصل بالمصروفات'!$E:$E)","v":0},{"$f":"SUMIF('التبرعات والرعايات الرسمية'!$L:$L,\"=\"&($A8&TEXT(E$4,\"mmm-yy\")),'التبرعات والرعايات الرسمية'!$D:$D)+SUMIF('ملخص مفصل بالمصروفات'!$J:$J,\"=\"&($A8&TEXT(E$4,\"mmm-yy\")),'ملخص مفصل بالمصروفات'!$E:$E)","v":0},{"$f":"SUMIF('التبرعات والرعايات الرسمية'!$L:$L,\"=\"&($A8&TEXT(F$4,\"mmm-yy\")),'التبرعات والرعايات الرسمية'!$D:$D)+SUMIF('ملخص مفصل بالمصروفات'!$J:$J,\"=\"&($A8&TEXT(F$4,\"mmm-yy\")),'ملخص مفصل بالمصروفات'!$E:$E)","v":0},{"$f":"SUMIF('التبرعات والرعايات الرسمية'!$L:$L,\"=\"&($A8&TEXT(G$4,\"mmm-yy\")),'التبرعات والرعايات الرسمية'!$D:$D)+SUMIF('ملخص مفصل بالمصروفات'!$J:$J,\"=\"&($A8&TEXT(G$4,\"mmm-yy\")),'ملخص مفصل بالمصروفات'!$E:$E)","v":0},{"$f":"SUMIF('التبرعات والرعايات الرسمية'!$L:$L,\"=\"&($A8&TEXT(H$4,\"mmm-yy\")),'التبرعات والرعايات الرسمية'!$D:$D)+SUMIF('ملخص مفصل بالمصروفات'!$J:$J,\"=\"&($A8&TEXT(H$4,\"mmm-yy\")),'ملخص مفصل بالمصروفات'!$E:$E)","v":0},{"$f":"SUMIF('التبرعات والرعايات الرسمية'!$L:$L,\"=\"&($A8&TEXT(I$4,\"mmm-yy\")),'التبرعات والرعايات الرسمية'!$D:$D)+SUMIF('ملخص مفصل بالمصروفات'!$J:$J,\"=\"&($A8&TEXT(I$4,\"mmm-yy\")),'ملخص مفصل بالمصروفات'!$E:$E)","v":0},{"$f":"SUMIF('التبرعات والرعايات الرسمية'!$L:$L,\"=\"&($A8&TEXT(J$4,\"mmm-yy\")),'التبرعات والرعايات الرسمية'!$D:$D)+SUMIF('ملخص مفصل بالمصروفات'!$J:$J,\"=\"&($A8&TEXT(J$4,\"mmm-yy\")),'ملخص مفصل بالمصروفات'!$E:$E)","v":0},{"$f":"SUMIF('التبرعات والرعايات الرسمية'!$L:$L,\"=\"&($A8&TEXT(K$4,\"mmm-yy\")),'التبرعات والرعايات الرسمية'!$D:$D)+SUMIF('ملخص مفصل بالمصروفات'!$J:$J,\"=\"&($A8&TEXT(K$4,\"mmm-yy\")),'ملخص مفصل بالمصروفات'!$E:$E)","v":0},{"$f":"SUMIF('التبرعات والرعايات الرسمية'!$L:$L,\"=\"&($A8&TEXT(L$4,\"mmm-yy\")),'التبرعات والرعايات الرسمية'!$D:$D)+SUMIF('ملخص مفصل بالمصروفات'!$J:$J,\"=\"&($A8&TEXT(L$4,\"mmm-yy\")),'ملخص مفصل بالمصروفات'!$E:$E)","v":0},{"$f":"SUMIF('التبرعات والرعايات الرسمية'!$L:$L,\"=\"&($A8&TEXT(M$4,\"mmm-yy\")),'التبرعات والرعايات الرسمية'!$D:$D)+SUMIF('ملخص مفصل بالمصروفات'!$J:$J,\"=\"&($A8&TEXT(M$4,\"mmm-yy\")),'ملخص مفصل بالمصروفات'!$E:$E)","v":0},{"$f":"SUMIF('التبرعات والرعايات الرسمية'!$L:$L,\"=\"&($A8&TEXT(N$4,\"mmm-yy\")),'التبرعات والرعايات الرسمية'!$D:$D)+SUMIF('ملخص مفصل بالمصروفات'!$J:$J,\"=\"&($A8&TEXT(N$4,\"mmm-yy\")),'ملخص مفصل بالمصروفات'!$E:$E)","v":0},{"$f":"SUM(C8:N8)","v":0}]
[]
[3000,"الطابعات",{"$f":"SUMIF('التبرعات والرعايات الرسمية'!$L:$L,\"=\"&($A10&TEXT(C$4,\"mmm-yy\")),'التبرعات والرعايات الرسمية'!$D:$D)+SUMIF('ملخص مفصل بالمصروفات'!$J:$J,\"=\"&($A10&TEXT(C$4,\"mmm-yy\")),'ملخص مفصل بالمصروفات'!$E:$E)","v":0},{"$f":"SUMIF('التبرعات والرعايات الرسمية'!$L:$L,\"=\"&($A10&TEXT(D$4,\"mmm-yy\")),'التبرعات والرعايات الرسمية'!$D:$D)+SUMIF('ملخص مفصل بالمصروفات'!$J:$J,\"=\"&($A10&TEXT(D$4,\"mmm-yy\")),'ملخص مفصل بالمصروفات'!$E:$E)","v":0},{"$f":"SUMIF('التبرعات والرعايات الرسمية'!$L:$L,\"=\"&($A10&TEXT(E$4,\"mmm-yy\")),'التبرعات والرعايات الرسمية'!$D:$D)+SUMIF('ملخص مفصل بالمصروفات'!$J:$J,\"=\"&($A10&TEXT(E$4,\"mmm-yy\")),'ملخص مفصل بالمصروفات'!$E:$E)","v":0},{"$f":"SUMIF('التبرعات والرعايات الرسمية'!$L:$L,\"=\"&($A10&TEXT(F$4,\"mmm-yy\")),'التبرعات والرعايات الرسمية'!$D:$D)+SUMIF('ملخص مفصل بالمصروفات'!$J:$J,\"=\"&($A10&TEXT(F$4,\"mmm-yy\")),'ملخص مفصل بالمصروفات'!$E:$E)","v":0},{"$f":"SUMIF('التبرعات والرعايات الرسمية'!$L:$L,\"=\"&($A10&TEXT(G$4,\"mmm-yy\")),'التبرعات والرعايات الرسمية'!$D:$D)+SUMIF('ملخص مفصل بالمصروفات'!$J:$J,\"=\"&($A10&TEXT(G$4,\"mmm-yy\")),'ملخص مفصل بالمصروفات'!$E:$E)","v":0},{"$f":"SUMIF('التبرعات والرعايات الرسمية'!$L:$L,\"=\"&($A10&TEXT(H$4,\"mmm-yy\")),'التبرعات والرعايات الرسمية'!$D:$D)+SUMIF('ملخص مفصل بالمصروفات'!$J:$J,\"=\"&($A10&TEXT(H$4,\"mmm-yy\")),'ملخص مفصل بالمصروفات'!$E:$E)","v":0},{"$f":"SUMIF('التبرعات والرعايات الرسمية'!$L:$L,\"=\"&($A10&TEXT(I$4,\"mmm-yy\")),'التبرعات والرعايات الرسمية'!$D:$D)+SUMIF('ملخص مفصل بالمصروفات'!$J:$J,\"=\"&($A10&TEXT(I$4,\"mmm-yy\")),'ملخص مفصل بالمصروفات'!$E:$E)","v":0},{"$f":"SUMIF('التبرعات والرعايات الرسمية'!$L:$L,\"=\"&($A10&TEXT(J$4,\"mmm-yy\")),'التبرعات والرعايات الرسمية'!$D:$D)+SUMIF('ملخص مفصل بالمصروفات'!$J:$J,\"=\"&($A10&TEXT(J$4,\"mmm-yy\")),'ملخص مفصل بالمصروفات'!$E:$E)","v":0},{"$f":"SUMIF('التبرعات والرعايات الرسمية'!$L:$L,\"=\"&($A10&TEXT(K$4,\"mmm-yy\")),'التبرعات والرعايات الرسمية'!$D:$D)+SUMIF('ملخص مفصل بالمصروفات'!$J:$J,\"=\"&($A10&TEXT(K$4,\"mmm-yy\")),'ملخص مفصل بالمصروفات'!$E:$E)","v":0},{"$f":"SUMIF('التبرعات والرعايات الرسمية'!$L:$L,\"=\"&($A10&TEXT(L$4,\"mmm-yy\")),'التبرعات والرعايات الرسمية'!$D:$D)+SUMIF('ملخص مفصل بالمصروفات'!$J:$J,\"=\"&($A10&TEXT(L$4,\"mmm-yy\")),'ملخص مفصل بالمصروفات'!$E:$E)","v":0},{"$f":"SUMIF('التبرعات والرعايات الرسمية'!$L:$L,\"=\"&($A10&TEXT(M$4,\"mmm-yy\")),'التبرعات والرعايات الرسمية'!$D:$D)+SUMIF('ملخص مفصل بالمصروفات'!$J:$J,\"=\"&($A10&TEXT(M$4,\"mmm-yy\")),'ملخص مفصل بالمصروفات'!$E:$E)","v":0},{"$f":"SUMIF('التبرعات والرعايات الرسمية'!$L:$L,\"=\"&($A10&TEXT(N$4,\"mmm-yy\")),'التبرعات والرعايات الرسمية'!$D:$D)+SUMIF('ملخص مفصل بالمصروفات'!$J:$J,\"=\"&($A10&TEXT(N$4,\"mmm-yy\")),'ملخص مفصل بالمصروفات'!$E:$E)","v":0},{"$f":"SUM(C10:N10)","v":0}]
[]
[4000,"تكاليف الملقم",{"$f":"SUMIF('التبرعات والرعايات الرسمية'!$L:$L,\"=\"&($A12&TEXT(C$4,\"mmm-yy\")),'التبرعات والرعايات الرسمية'!$D:$D)+SUMIF('ملخص مفصل بالمصروفات'!$J:$J,\"=\"&($A12&TEXT(C$4,\"mmm-yy\")),'ملخص مفصل بالمصروفات'!$E:$E)","v":0},{"$f":"SUMIF('التبرعات والرعايات الرسمية'!$L:$L,\"=\"&($A12&TEXT(D$4,\"mmm-yy\")),'التبرعات والرعايات الرسمية'!$D:$D)+SUMIF('ملخص مفصل بالمصروفات'!$J:$J,\"=\"&($A12&TEXT(D$4,\"mmm-yy\")),'ملخص مفصل بالمصروفات'!$E:$E)","v":0},{"$f":"SUMIF('التبرعات والرعايات الرسمية'!$L:$L,\"=\"&($A12&TEXT(E$4,\"mmm-yy\")),'التبرعات والرعايات الرسمية'!$D:$D)+SUMIF('ملخص مفصل بالمصروفات'!$J:$J,\"=\"&($A12&TEXT(E$4,\"mmm-yy\")),'ملخص مفصل بالمصروفات'!$E:$E)","v":0},{"$f":"SUMIF('التبرعات والرعايات الرسمية'!$L:$L,\"=\"&($A12&TEXT(F$4,\"mmm-yy\")),'التبرعات والرعايات الرسمية'!$D:$D)+SUMIF('ملخص مفصل بالمصروفات'!$J:$J,\"=\"&($A12&TEXT(F$4,\"mmm-yy\")),'ملخص مفصل بالمصروفات'!$E:$E)","v":0},{"$f":"SUMIF('التبرعات والرعايات الرسمية'!$L:$L,\"=\"&($A12&TEXT(G$4,\"mmm-yy\")),'التبرعات والرعايات الرسمية'!$D:$D)+SUMIF('ملخص مفصل بالمصروفات'!$J:$J,\"=\"&($A12&TEXT(G$4,\"mmm-yy\")),'ملخص مفصل بالمصروفات'!$E:$E)","v":0},{"$f":"SUMIF('التبرعات والرعايات الرسمية'!$L:$L,\"=\"&($A12&TEXT(H$4,\"mmm-yy\")),'التبرعات والرعايات الرسمية'!$D:$D)+SUMIF('ملخص مفصل بالمصروفات'!$J:$J,\"=\"&($A12&TEXT(H$4,\"mmm-yy\")),'ملخص مفصل بالمصروفات'!$E:$E)","v":0},{"$f":"SUMIF('التبرعات والرعايات الرسمية'!$L:$L,\"=\"&($A12&TEXT(I$4,\"mmm-yy\")),'التبرعات والرعايات الرسمية'!$D:$D)+SUMIF('ملخص مفصل بالمصروفات'!$J:$J,\"=\"&($A12&TEXT(I$4,\"mmm-yy\")),'ملخص مفصل بالمصروفات'!$E:$E)","v":0},{"$f":"SUMIF('التبرعات والرعايات الرسمية'!$L:$L,\"=\"&($A12&TEXT(J$4,\"mmm-yy\")),'التبرعات والرعايات الرسمية'!$D:$D)+SUMIF('ملخص مفصل بالمصروفات'!$J:$J,\"=\"&($A12&TEXT(J$4,\"mmm-yy\")),'ملخص مفصل بالمصروفات'!$E:$E)","v":0},{"$f":"SUMIF('التبرعات والرعايات الرسمية'!$L:$L,\"=\"&($A12&TEXT(K$4,\"mmm-yy\")),'التبرعات والرعايات الرسمية'!$D:$D)+SUMIF('ملخص مفصل بالمصروفات'!$J:$J,\"=\"&($A12&TEXT(K$4,\"mmm-yy\")),'ملخص مفصل بالمصروفات'!$E:$E)","v":0},{"$f":"SUMIF('التبرعات والرعايات الرسمية'!$L:$L,\"=\"&($A12&TEXT(L$4,\"mmm-yy\")),'التبرعات والرعايات الرسمية'!$D:$D)+SUMIF('ملخص مفصل بالمصروفات'!$J:$J,\"=\"&($A12&TEXT(L$4,\"mmm-yy\")),'ملخص مفصل بالمصروفات'!$E:$E)","v":0},{"$f":"SUMIF('التبرعات والرعايات الرسمية'!$L:$L,\"=\"&($A12&TEXT(M$4,\"mmm-yy\")),'التبرعات والرعايات الرسمية'!$D:$D)+SUMIF('ملخص مفصل بالمصروفات'!$J:$J,\"=\"&($A12&TEXT(M$4,\"mmm-yy\")),'ملخص مفصل بالمصروفات'!$E:$E)","v":0},{"$f":"SUMIF('التبرعات والرعايات الرسمية'!$L:$L,\"=\"&($A12&TEXT(N$4,\"mmm-yy\")),'التبرعات والرعايات الرسمية'!$D:$D)+SUMIF('ملخص مفصل بالمصروفات'!$J:$J,\"=\"&($A12&TEXT(N$4,\"mmm-yy\")),'ملخص مفصل بالمصروفات'!$E:$E)","v":0},{"$f":"SUM(C12:N12)","v":0}]
[]
[5000,"الموارد",{"$f":"SUMIF('التبرعات والرعايات الرسمية'!$L:$L,\"=\"&($A14&TEXT(C$4,\"mmm-yy\")),'التبرعات والرعايات الرسمية'!$D:$D)+SUMIF('ملخص مفصل بالمصروفات'!$J:$J,\"=\"&($A14&TEXT(C$4,\"mmm-yy\")),'ملخص مفصل بالمصروفات'!$E:$E)","v":0},{"$f":"SUMIF('التبرعات والرعايات الرسمية'!$L:$L,\"=\"&($A14&TEXT(D$4,\"mmm-yy\")),'التبرعات والرعايات الرسمية'!$D:$D)+SUMIF('ملخص مفصل بالمصروفات'!$J:$J,\"=\"&($A14&TEXT(D$4,\"mmm-yy\")),'ملخص مفصل بالمصروفات'!$E:$E)","v":0},{"$f":"SUMIF('التبرعات والرعايات الرسمية'!$L:$L,\"=\"&($A14&TEXT(E$4,\"mmm-yy\")),'التبرعات والرعايات الرسمية'!$D:$D)+SUMIF('ملخص مفصل بالمصروفات'!$J:$J,\"=\"&($A14&TEXT(E$4,\"mmm-yy\")),'ملخص مفصل بالمصروفات'!$E:$E)","v":0},{"$f":"SUMIF('التبرعات والرعايات الرسمية'!$L:$L,\"=\"&($A14&TEXT(F$4,\"mmm-yy\")),'التبرعات والرعايات الرسمية'!$D:$D)+SUMIF('ملخص مفصل بالمصروفات'!$J:$J,\"=\"&($A14&TEXT(F$4,\"mmm-yy\")),'ملخص مفصل بالمصروفات'!$E:$E)","v":0},{"$f":"SUMIF('التبرعات والرعايات الرسمية'!$L:$L,\"=\"&($A14&TEXT(G$4,\"mmm-yy\")),'التبرعات والرعايات الرسمية'!$D:$D)+SUMIF('ملخص مفصل بالمصروفات'!$J:$J,\"=\"&($A14&TEXT(G$4,\"mmm-yy\")),'ملخص مفصل بالمصروفات'!$E:$E)","v":0},{"$f":"SUMIF('التبرعات والرعايات الرسمية'!$L:$L,\"=\"&($A14&TEXT(H$4,\"mmm-yy\")),'التبرعات والرعايات الرسمية'!$D:$D)+SUMIF('ملخص مفصل بالمصروفات'!$J:$J,\"=\"&($A14&TEXT(H$4,\"mmm-yy\")),'ملخص مفصل بالمصروفات'!$E:$E)","v":0},{"$f":"SUMIF('التبرعات والرعايات الرسمية'!$L:$L,\"=\"&($A14&TEXT(I$4,\"mmm-yy\")),'التبرعات والرعايات الرسمية'!$D:$D)+SUMIF('ملخص مفصل بالمصروفات'!$J:$J,\"=\"&($A14&TEXT(I$4,\"mmm-yy\")),'ملخص مفصل بالمصروفات'!$E:$E)","v":0},{"$f":"SUMIF('التبرعات والرعايات الرسمية'!$L:$L,\"=\"&($A14&TEXT(J$4,\"mmm-yy\")),'التبرعات والرعايات الرسمية'!$D:$D)+SUMIF('ملخص مفصل بالمصروفات'!$J:$J,\"=\"&($A14&TEXT(J$4,\"mmm-yy\")),'ملخص مفصل بالمصروفات'!$E:$E)","v":0},{"$f":"SUMIF('التبرعات والرعايات الرسمية'!$L:$L,\"=\"&($A14&TEXT(K$4,\"mmm-yy\")),'التبرعات والرعايات الرسمية'!$D:$D)+SUMIF('ملخص مفصل بالمصروفات'!$J:$J,\"=\"&($A14&TEXT(K$4,\"mmm-yy\")),'ملخص مفصل بالمصروفات'!$E:$E)","v":0},{"$f":"SUMIF('التبرعات والرعايات الرسمية'!$L:$L,\"=\"&($A14&TEXT(L$4,\"mmm-yy\")),'التبرعات والرعايات الرسمية'!$D:$D)+SUMIF('ملخص مفصل بالمصروفات'!$J:$J,\"=\"&($A14&TEXT(L$4,\"mmm-yy\")),'ملخص مفصل بالمصروفات'!$E:$E)","v":0},{"$f":"SUMIF('التبرعات والرعايات الرسمية'!$L:$L,\"=\"&($A14&TEXT(M$4,\"mmm-yy\")),'التبرعات والرعايات الرسمية'!$D:$D)+SUMIF('ملخص مفصل بالمصروفات'!$J:$J,\"=\"&($A14&TEXT(M$4,\"mmm-yy\")),'ملخص مفصل بالمصروفات'!$E:$E)","v":0},{"$f":"SUMIF('التبرعات والرعايات الرسمية'!$L:$L,\"=\"&($A14&TEXT(N$4,\"mmm-yy\")),'التبرعات والرعايات الرسمية'!$D:$D)+SUMIF('ملخص مفصل بالمصروفات'!$J:$J,\"=\"&($A14&TEXT(N$4,\"mmm-yy\")),'ملخص مفصل بالمصروفات'!$E:$E)","v":0},{"$f":"SUM(C14:N14)","v":0}]
[]
[6000,"مصروفات العملاء",{"$f":"SUMIF('التبرعات والرعايات الرسمية'!$L:$L,\"=\"&($A16&TEXT(C$4,\"mmm-yy\")),'التبرعات والرعايات الرسمية'!$D:$D)+SUMIF('ملخص مفصل بالمصروفات'!$J:$J,\"=\"&($A16&TEXT(C$4,\"mmm-yy\")),'ملخص مفصل بالمصروفات'!$E:$E)","v":0},{"$f":"SUMIF('التبرعات والرعايات الرسمية'!$L:$L,\"=\"&($A16&TEXT(D$4,\"mmm-yy\")),'التبرعات والرعايات الرسمية'!$D:$D)+SUMIF('ملخص مفصل بالمصروفات'!$J:$J,\"=\"&($A16&TEXT(D$4,\"mmm-yy\")),'ملخص مفصل بالمصروفات'!$E:$E)","v":0},{"$f":"SUMIF('التبرعات والرعايات الرسمية'!$L:$L,\"=\"&($A16&TEXT(E$4,\"mmm-yy\")),'التبرعات والرعايات الرسمية'!$D:$D)+SUMIF('ملخص مفصل بالمصروفات'!$J:$J,\"=\"&($A16&TEXT(E$4,\"mmm-yy\")),'ملخص مفصل بالمصروفات'!$E:$E)","v":0},{"$f":"SUMIF('التبرعات والرعايات الرسمية'!$L:$L,\"=\"&($A16&TEXT(F$4,\"mmm-yy\")),'التبرعات والرعايات الرسمية'!$D:$D)+SUMIF('ملخص مفصل بالمصروفات'!$J:$J,\"=\"&($A16&TEXT(F$4,\"mmm-yy\")),'ملخص مفصل بالمصروفات'!$E:$E)","v":0},{"$f":"SUMIF('التبرعات والرعايات الرسمية'!$L:$L,\"=\"&($A16&TEXT(G$4,\"mmm-yy\")),'التبرعات والرعايات الرسمية'!$D:$D)+SUMIF('ملخص مفصل بالمصروفات'!$J:$J,\"=\"&($A16&TEXT(G$4,\"mmm-yy\")),'ملخص مفصل بالمصروفات'!$E:$E)","v":0},{"$f":"SUMIF('التبرعات والرعايات الرسمية'!$L:$L,\"=\"&($A16&TEXT(H$4,\"mmm-yy\")),'التبرعات والرعايات الرسمية'!$D:$D)+SUMIF('ملخص مفصل بالمصروفات'!$J:$J,\"=\"&($A16&TEXT(H$4,\"mmm-yy\")),'ملخص مفصل بالمصروفات'!$E:$E)","v":0},{"$f":"SUMIF('التبرعات والرعايات الرسمية'!$L:$L,\"=\"&($A16&TEXT(I$4,\"mmm-yy\")),'التبرعات والرعايات الرسمية'!$D:$D)+SUMIF('ملخص مفصل بالمصروفات'!$J:$J,\"=\"&($A16&TEXT(I$4,\"mmm-yy\")),'ملخص مفصل بالمصروفات'!$E:$E)","v":0},{"$f":"SUMIF('التبرعات والرعايات الرسمية'!$L:$L,\"=\"&($A16&TEXT(J$4,\"mmm-yy\")),'التبرعات والرعايات الرسمية'!$D:$D)+SUMIF('ملخص مفصل بالمصروفات'!$J:$J,\"=\"&($A16&TEXT(J$4,\"mmm-yy\")),'ملخص مفصل بالمصروفات'!$E:$E)","v":0},{"$f":"SUMIF('التبرعات والرعايات الرسمية'!$L:$L,\"=\"&($A16&TEXT(K$4,\"mmm-yy\")),'التبرعات والرعايات الرسمية'!$D:$D)+SUMIF('ملخص مفصل بالمصروفات'!$J:$J,\"=\"&($A16&TEXT(K$4,\"mmm-yy\")),'ملخص مفصل بالمصروفات'!$E:$E)","v":0},{"$f":"SUMIF('التبرعات والرعايات الرسمية'!$L:$L,\"=\"&($A16&TEXT(L$4,\"mmm-yy\")),'التبرعات والرعايات الرسمية'!$D:$D)+SUMIF('ملخص مفصل بالمصروفات'!$J:$J,\"=\"&($A16&TEXT(L$4,\"mmm-yy\")),'ملخص مفصل بالمصروفات'!$E:$E)","v":0},{"$f":"SUMIF('التبرعات والرعايات الرسمية'!$L:$L,\"=\"&($A16&TEXT(M$4,\"mmm-yy\")),'التبرعات والرعايات الرسمية'!$D:$D)+SUMIF('ملخص مفصل بالمصروفات'!$J:$J,\"=\"&($A16&TEXT(M$4,\"mmm-yy\")),'ملخص مفصل بالمصروفات'!$E:$E)","v":0},{"$f":"SUMIF('التبرعات والرعايات الرسمية'!$L:$L,\"=\"&($A16&TEXT(N$4,\"mmm-yy\")),'التبرعات والرعايات الرسمية'!$D:$D)+SUMIF('ملخص مفصل بالمصروفات'!$J:$J,\"=\"&($A16&TEXT(N$4,\"mmm-yy\")),'ملخص مفصل بالمصروفات'!$E:$E)","v":0},{"$f":"SUM(C16:N16)","v":0}]
[]
[7000,"أجهزة الكمبيوتر",{"$f":"SUMIF('التبرعات والرعايات الرسمية'!$L:$L,\"=\"&($A18&TEXT(C$4,\"mmm-yy\")),'التبرعات والرعايات الرسمية'!$D:$D)+SUMIF('ملخص مفصل بالمصروفات'!$J:$J,\"=\"&($A18&TEXT(C$4,\"mmm-yy\")),'ملخص مفصل بالمصروفات'!$E:$E)","v":{"v":2500,"d":"ر.س2,500.00"}},{"$f":"SUMIF('التبرعات والرعايات الرسمية'!$L:$L,\"=\"&($A18&TEXT(D$4,\"mmm-yy\")),'التبرعات والرعايات الرسمية'!$D:$D)+SUMIF('ملخص مفصل بالمصروفات'!$J:$J,\"=\"&($A18&TEXT(D$4,\"mmm-yy\")),'ملخص مفصل بالمصروفات'!$E:$E)","v":0},{"$f":"SUMIF('التبرعات والرعايات الرسمية'!$L:$L,\"=\"&($A18&TEXT(E$4,\"mmm-yy\")),'التبرعات والرعايات الرسمية'!$D:$D)+SUMIF('ملخص مفصل بالمصروفات'!$J:$J,\"=\"&($A18&TEXT(E$4,\"mmm-yy\")),'ملخص مفصل بالمصروفات'!$E:$E)","v":0},{"$f":"SUMIF('التبرعات والرعايات الرسمية'!$L:$L,\"=\"&($A18&TEXT(F$4,\"mmm-yy\")),'التبرعات والرعايات الرسمية'!$D:$D)+SUMIF('ملخص مفصل بالمصروفات'!$J:$J,\"=\"&($A18&TEXT(F$4,\"mmm-yy\")),'ملخص مفصل بالمصروفات'!$E:$E)","v":0},{"$f":"SUMIF('التبرعات والرعايات الرسمية'!$L:$L,\"=\"&($A18&TEXT(G$4,\"mmm-yy\")),'التبرعات والرعايات الرسمية'!$D:$D)+SUMIF('ملخص مفصل بالمصروفات'!$J:$J,\"=\"&($A18&TEXT(G$4,\"mmm-yy\")),'ملخص مفصل بالمصروفات'!$E:$E)","v":0},{"$f":"SUMIF('التبرعات والرعايات الرسمية'!$L:$L,\"=\"&($A18&TEXT(H$4,\"mmm-yy\")),'التبرعات والرعايات الرسمية'!$D:$D)+SUMIF('ملخص مفصل بالمصروفات'!$J:$J,\"=\"&($A18&TEXT(H$4,\"mmm-yy\")),'ملخص مفصل بالمصروفات'!$E:$E)","v":0},{"$f":"SUMIF('التبرعات والرعايات الرسمية'!$L:$L,\"=\"&($A18&TEXT(I$4,\"mmm-yy\")),'التبرعات والرعايات الرسمية'!$D:$D)+SUMIF('ملخص مفصل بالمصروفات'!$J:$J,\"=\"&($A18&TEXT(I$4,\"mmm-yy\")),'ملخص مفصل بالمصروفات'!$E:$E)","v":0},{"$f":"SUMIF('التبرعات والرعايات الرسمية'!$L:$L,\"=\"&($A18&TEXT(J$4,\"mmm-yy\")),'التبرعات والرعايات الرسمية'!$D:$D)+SUMIF('ملخص مفصل بالمصروفات'!$J:$J,\"=\"&($A18&TEXT(J$4,\"mmm-yy\")),'ملخص مفصل بالمصروفات'!$E:$E)","v":0},{"$f":"SUMIF('التبرعات والرعايات الرسمية'!$L:$L,\"=\"&($A18&TEXT(K$4,\"mmm-yy\")),'التبرعات والرعايات الرسمية'!$D:$D)+SUMIF('ملخص مفصل بالمصروفات'!$J:$J,\"=\"&($A18&TEXT(K$4,\"mmm-yy\")),'ملخص مفصل بالمصروفات'!$E:$E)","v":0},{"$f":"SUMIF('التبرعات والرعايات الرسمية'!$L:$L,\"=\"&($A18&TEXT(L$4,\"mmm-yy\")),'التبرعات والرعايات الرسمية'!$D:$D)+SUMIF('ملخص مفصل بالمصروفات'!$J:$J,\"=\"&($A18&TEXT(L$4,\"mmm-yy\")),'ملخص مفصل بالمصروفات'!$E:$E)","v":0},{"$f":"SUMIF('التبرعات والرعايات الرسمية'!$L:$L,\"=\"&($A18&TEXT(M$4,\"mmm-yy\")),'التبرعات والرعايات الرسمية'!$D:$D)+SUMIF('ملخص مفصل بالمصروفات'!$J:$J,\"=\"&($A18&TEXT(M$4,\"mmm-yy\")),'ملخص مفصل بالمصروفات'!$E:$E)","v":0},{"$f":"SUMIF('التبرعات والرعايات الرسمية'!$L:$L,\"=\"&($A18&TEXT(N$4,\"mmm-yy\")),'التبرعات والرعايات الرسمية'!$D:$D)+SUMIF('ملخص مفصل بالمصروفات'!$J:$J,\"=\"&($A18&TEXT(N$4,\"mmm-yy\")),'ملخص مفصل بالمصروفات'!$E:$E)","v":0},{"$f":"SUM(C18:N18)","v":{"v":2500,"d":"ر.س2,500.00"}}]
[]
[8000,"خطة الرعاية الصحية",{"$f":"SUMIF('التبرعات والرعايات الرسمية'!$L:$L,\"=\"&($A20&TEXT(C$4,\"mmm-yy\")),'التبرعات والرعايات الرسمية'!$D:$D)+SUMIF('ملخص مفصل بالمصروفات'!$J:$J,\"=\"&($A20&TEXT(C$4,\"mmm-yy\")),'ملخص مفصل بالمصروفات'!$E:$E)","v":0},{"$f":"SUMIF('التبرعات والرعايات الرسمية'!$L:$L,\"=\"&($A20&TEXT(D$4,\"mmm-yy\")),'التبرعات والرعايات الرسمية'!$D:$D)+SUMIF('ملخص مفصل بالمصروفات'!$J:$J,\"=\"&($A20&TEXT(D$4,\"mmm-yy\")),'ملخص مفصل بالمصروفات'!$E:$E)","v":0},{"$f":"SUMIF('التبرعات والرعايات الرسمية'!$L:$L,\"=\"&($A20&TEXT(E$4,\"mmm-yy\")),'التبرعات والرعايات الرسمية'!$D:$D)+SUMIF('ملخص مفصل بالمصروفات'!$J:$J,\"=\"&($A20&TEXT(E$4,\"mmm-yy\")),'ملخص مفصل بالمصروفات'!$E:$E)","v":0},{"$f":"SUMIF('التبرعات والرعايات الرسمية'!$L:$L,\"=\"&($A20&TEXT(F$4,\"mmm-yy\")),'التبرعات والرعايات الرسمية'!$D:$D)+SUMIF('ملخص مفصل بالمصروفات'!$J:$J,\"=\"&($A20&TEXT(F$4,\"mmm-yy\")),'ملخص مفصل بالمصروفات'!$E:$E)","v":0},{"$f":"SUMIF('التبرعات والرعايات الرسمية'!$L:$L,\"=\"&($A20&TEXT(G$4,\"mmm-yy\")),'التبرعات والرعايات الرسمية'!$D:$D)+SUMIF('ملخص مفصل بالمصروفات'!$J:$J,\"=\"&($A20&TEXT(G$4,\"mmm-yy\")),'ملخص مفصل بالمصروفات'!$E:$E)","v":0},{"$f":"SUMIF('التبرعات والرعايات الرسمية'!$L:$L,\"=\"&($A20&TEXT(H$4,\"mmm-yy\")),'التبرعات والرعايات الرسمية'!$D:$D)+SUMIF('ملخص مفصل بالمصروفات'!$J:$J,\"=\"&($A20&TEXT(H$4,\"mmm-yy\")),'ملخص مفصل بالمصروفات'!$E:$E)","v":0},{"$f":"SUMIF('التبرعات والرعايات الرسمية'!$L:$L,\"=\"&($A20&TEXT(I$4,\"mmm-yy\")),'التبرعات والرعايات الرسمية'!$D:$D)+SUMIF('ملخص مفصل بالمصروفات'!$J:$J,\"=\"&($A20&TEXT(I$4,\"mmm-yy\")),'ملخص مفصل بالمصروفات'!$E:$E)","v":0},{"$f":"SUMIF('التبرعات والرعايات الرسمية'!$L:$L,\"=\"&($A20&TEXT(J$4,\"mmm-yy\")),'التبرعات والرعايات الرسمية'!$D:$D)+SUMIF('ملخص مفصل بالمصروفات'!$J:$J,\"=\"&($A20&TEXT(J$4,\"mmm-yy\")),'ملخص مفصل بالمصروفات'!$E:$E)","v":0},{"$f":"SUMIF('التبرعات والرعايات الرسمية'!$L:$L,\"=\"&($A20&TEXT(K$4,\"mmm-yy\")),'التبرعات والرعايات الرسمية'!$D:$D)+SUMIF('ملخص مفصل بالمصروفات'!$J:$J,\"=\"&($A20&TEXT(K$4,\"mmm-yy\")),'ملخص مفصل بالمصروفات'!$E:$E)","v":0},{"$f":"SUMIF('التبرعات والرعايات الرسمية'!$L:$L,\"=\"&($A20&TEXT(L$4,\"mmm-yy\")),'التبرعات والرعايات الرسمية'!$D:$D)+SUMIF('ملخص مفصل بالمصروفات'!$J:$J,\"=\"&($A20&TEXT(L$4,\"mmm-yy\")),'ملخص مفصل بالمصروفات'!$E:$E)","v":0},{"$f":"SUMIF('التبرعات والرعايات الرسمية'!$L:$L,\"=\"&($A20&TEXT(M$4,\"mmm-yy\")),'التبرعات والرعايات الرسمية'!$D:$D)+SUMIF('ملخص مفصل بالمصروفات'!$J:$J,\"=\"&($A20&TEXT(M$4,\"mmm-yy\")),'ملخص مفصل بالمصروفات'!$E:$E)","v":0},{"$f":"SUMIF('التبرعات والرعايات الرسمية'!$L:$L,\"=\"&($A20&TEXT(N$4,\"mmm-yy\")),'التبرعات والرعايات الرسمية'!$D:$D)+SUMIF('ملخص مفصل بالمصروفات'!$J:$J,\"=\"&($A20&TEXT(N$4,\"mmm-yy\")),'ملخص مفصل بالمصروفات'!$E:$E)","v":0},{"$f":"SUM(C20:N20)","v":0}]
[]
[9000,"تكاليف الإنشاءات",{"$f":"SUMIF('التبرعات والرعايات الرسمية'!$L:$L,\"=\"&($A22&TEXT(C$4,\"mmm-yy\")),'التبرعات والرعايات الرسمية'!$D:$D)+SUMIF('ملخص مفصل بالمصروفات'!$J:$J,\"=\"&($A22&TEXT(C$4,\"mmm-yy\")),'ملخص مفصل بالمصروفات'!$E:$E)","v":0},{"$f":"SUMIF('التبرعات والرعايات الرسمية'!$L:$L,\"=\"&($A22&TEXT(D$4,\"mmm-yy\")),'التبرعات والرعايات الرسمية'!$D:$D)+SUMIF('ملخص مفصل بالمصروفات'!$J:$J,\"=\"&($A22&TEXT(D$4,\"mmm-yy\")),'ملخص مفصل بالمصروفات'!$E:$E)","v":0},{"$f":"SUMIF('التبرعات والرعايات الرسمية'!$L:$L,\"=\"&($A22&TEXT(E$4,\"mmm-yy\")),'التبرعات والرعايات الرسمية'!$D:$D)+SUMIF('ملخص مفصل بالمصروفات'!$J:$J,\"=\"&($A22&TEXT(E$4,\"mmm-yy\")),'ملخص مفصل بالمصروفات'!$E:$E)","v":0},{"$f":"SUMIF('التبرعات والرعايات الرسمية'!$L:$L,\"=\"&($A22&TEXT(F$4,\"mmm-yy\")),'التبرعات والرعايات الرسمية'!$D:$D)+SUMIF('ملخص مفصل بالمصروفات'!$J:$J,\"=\"&($A22&TEXT(F$4,\"mmm-yy\")),'ملخص مفصل بالمصروفات'!$E:$E)","v":0},{"$f":"SUMIF('التبرعات والرعايات الرسمية'!$L:$L,\"=\"&($A22&TEXT(G$4,\"mmm-yy\")),'التبرعات والرعايات الرسمية'!$D:$D)+SUMIF('ملخص مفصل بالمصروفات'!$J:$J,\"=\"&($A22&TEXT(G$4,\"mmm-yy\")),'ملخص مفصل بالمصروفات'!$E:$E)","v":0},{"$f":"SUMIF('التبرعات والرعايات الرسمية'!$L:$L,\"=\"&($A22&TEXT(H$4,\"mmm-yy\")),'التبرعات والرعايات الرسمية'!$D:$D)+SUMIF('ملخص مفصل بالمصروفات'!$J:$J,\"=\"&($A22&TEXT(H$4,\"mmm-yy\")),'ملخص مفصل بالمصروفات'!$E:$E)","v":0},{"$f":"SUMIF('التبرعات والرعايات الرسمية'!$L:$L,\"=\"&($A22&TEXT(I$4,\"mmm-yy\")),'التبرعات والرعايات الرسمية'!$D:$D)+SUMIF('ملخص مفصل بالمصروفات'!$J:$J,\"=\"&($A22&TEXT(I$4,\"mmm-yy\")),'ملخص مفصل بالمصروفات'!$E:$E)","v":0},{"$f":"SUMIF('التبرعات والرعايات الرسمية'!$L:$L,\"=\"&($A22&TEXT(J$4,\"mmm-yy\")),'التبرعات والرعايات الرسمية'!$D:$D)+SUMIF('ملخص مفصل بالمصروفات'!$J:$J,\"=\"&($A22&TEXT(J$4,\"mmm-yy\")),'ملخص مفصل بالمصروفات'!$E:$E)","v":0},{"$f":"SUMIF('التبرعات والرعايات الرسمية'!$L:$L,\"=\"&($A22&TEXT(K$4,\"mmm-yy\")),'التبرعات والرعايات الرسمية'!$D:$D)+SUMIF('ملخص مفصل بالمصروفات'!$J:$J,\"=\"&($A22&TEXT(K$4,\"mmm-yy\")),'ملخص مفصل بالمصروفات'!$E:$E)","v":0},{"$f":"SUMIF('التبرعات والرعايات الرسمية'!$L:$L,\"=\"&($A22&TEXT(L$4,\"mmm-yy\")),'التبرعات والرعايات الرسمية'!$D:$D)+SUMIF('ملخص مفصل بالمصروفات'!$J:$J,\"=\"&($A22&TEXT(L$4,\"mmm-yy\")),'ملخص مفصل بالمصروفات'!$E:$E)","v":0},{"$f":"SUMIF('التبرعات والرعايات الرسمية'!$L:$L,\"=\"&($A22&TEXT(M$4,\"mmm-yy\")),'التبرعات والرعايات الرسمية'!$D:$D)+SUMIF('ملخص مفصل بالمصروفات'!$J:$J,\"=\"&($A22&TEXT(M$4,\"mmm-yy\")),'ملخص مفصل بالمصروفات'!$E:$E)","v":0},{"$f":"SUMIF('التبرعات والرعايات الرسمية'!$L:$L,\"=\"&($A22&TEXT(N$4,\"mmm-yy\")),'التبرعات والرعايات الرسمية'!$D:$D)+SUMIF('ملخص مفصل بالمصروفات'!$J:$J,\"=\"&($A22&TEXT(N$4,\"mmm-yy\")),'ملخص مفصل بالمصروفات'!$E:$E)","v":0},{"$f":"SUM(C22:N22)","v":0}]
[]
[10000,"التسويق",{"$f":"SUMIF('التبرعات والرعايات الرسمية'!$L:$L,\"=\"&($A24&TEXT(C$4,\"mmm-yy\")),'التبرعات والرعايات الرسمية'!$D:$D)+SUMIF('ملخص مفصل بالمصروفات'!$J:$J,\"=\"&($A24&TEXT(C$4,\"mmm-yy\")),'ملخص مفصل بالمصروفات'!$E:$E)","v":0},{"$f":"SUMIF('التبرعات والرعايات الرسمية'!$L:$L,\"=\"&($A24&TEXT(D$4,\"mmm-yy\")),'التبرعات والرعايات الرسمية'!$D:$D)+SUMIF('ملخص مفصل بالمصروفات'!$J:$J,\"=\"&($A24&TEXT(D$4,\"mmm-yy\")),'ملخص مفصل بالمصروفات'!$E:$E)","v":0},{"$f":"SUMIF('التبرعات والرعايات الرسمية'!$L:$L,\"=\"&($A24&TEXT(E$4,\"mmm-yy\")),'التبرعات والرعايات الرسمية'!$D:$D)+SUMIF('ملخص مفصل بالمصروفات'!$J:$J,\"=\"&($A24&TEXT(E$4,\"mmm-yy\")),'ملخص مفصل بالمصروفات'!$E:$E)","v":0},{"$f":"SUMIF('التبرعات والرعايات الرسمية'!$L:$L,\"=\"&($A24&TEXT(F$4,\"mmm-yy\")),'التبرعات والرعايات الرسمية'!$D:$D)+SUMIF('ملخص مفصل بالمصروفات'!$J:$J,\"=\"&($A24&TEXT(F$4,\"mmm-yy\")),'ملخص مفصل بالمصروفات'!$E:$E)","v":0},{"$f":"SUMIF('التبرعات والرعايات الرسمية'!$L:$L,\"=\"&($A24&TEXT(G$4,\"mmm-yy\")),'التبرعات والرعايات الرسمية'!$D:$D)+SUMIF('ملخص مفصل بالمصروفات'!$J:$J,\"=\"&($A24&TEXT(G$4,\"mmm-yy\")),'ملخص مفصل بالمصروفات'!$E:$E)","v":0},{"$f":"SUMIF('التبرعات والرعايات الرسمية'!$L:$L,\"=\"&($A24&TEXT(H$4,\"mmm-yy\")),'التبرعات والرعايات الرسمية'!$D:$D)+SUMIF('ملخص مفصل بالمصروفات'!$J:$J,\"=\"&($A24&TEXT(H$4,\"mmm-yy\")),'ملخص مفصل بالمصروفات'!$E:$E)","v":0},{"$f":"SUMIF('التبرعات والرعايات الرسمية'!$L:$L,\"=\"&($A24&TEXT(I$4,\"mmm-yy\")),'التبرعات والرعايات الرسمية'!$D:$D)+SUMIF('ملخص مفصل بالمصروفات'!$J:$J,\"=\"&($A24&TEXT(I$4,\"mmm-yy\")),'ملخص مفصل بالمصروفات'!$E:$E)","v":0},{"$f":"SUMIF('التبرعات والرعايات الرسمية'!$L:$L,\"=\"&($A24&TEXT(J$4,\"mmm-yy\")),'التبرعات والرعايات الرسمية'!$D:$D)+SUMIF('ملخص مفصل بالمصروفات'!$J:$J,\"=\"&($A24&TEXT(J$4,\"mmm-yy\")),'ملخص مفصل بالمصروفات'!$E:$E)","v":0},{"$f":"SUMIF('التبرعات والرعايات الرسمية'!$L:$L,\"=\"&($A24&TEXT(K$4,\"mmm-yy\")),'التبرعات والرعايات الرسمية'!$D:$D)+SUMIF('ملخص مفصل بالمصروفات'!$J:$J,\"=\"&($A24&TEXT(K$4,\"mmm-yy\")),'ملخص مفصل بالمصروفات'!$E:$E)","v":0},{"$f":"SUMIF('التبرعات والرعايات الرسمية'!$L:$L,\"=\"&($A24&TEXT(L$4,\"mmm-yy\")),'التبرعات والرعايات الرسمية'!$D:$D)+SUMIF('ملخص مفصل بالمصروفات'!$J:$J,\"=\"&($A24&TEXT(L$4,\"mmm-yy\")),'ملخص مفصل بالمصروفات'!$E:$E)","v":0},{"$f":"SUMIF('التبرعات والرعايات الرسمية'!$L:$L,\"=\"&($A24&TEXT(M$4,\"mmm-yy\")),'التبرعات والرعايات الرسمية'!$D:$D)+SUMIF('ملخص مفصل بالمصروفات'!$J:$J,\"=\"&($A24&TEXT(M$4,\"mmm-yy\")),'ملخص مفصل بالمصروفات'!$E:$E)","v":0},{"$f":"SUMIF('التبرعات والرعايات الرسمية'!$L:$L,\"=\"&($A24&TEXT(N$4,\"mmm-yy\")),'التبرعات والرعايات الرسمية'!$D:$D)+SUMIF('ملخص مفصل بالمصروفات'!$J:$J,\"=\"&($A24&TEXT(N$4,\"mmm-yy\")),'ملخص مفصل بالمصروفات'!$E:$E)","v":0},{"$f":"SUM(C24:N24)","v":0}]
[]
[11000,"التبرعات",{"$f":"SUMIF('التبرعات والرعايات الرسمية'!$L:$L,\"=\"&($A26&TEXT(C$4,\"mmm-yy\")),'التبرعات والرعايات الرسمية'!$D:$D)+SUMIF('ملخص مفصل بالمصروفات'!$J:$J,\"=\"&($A26&TEXT(C$4,\"mmm-yy\")),'ملخص مفصل بالمصروفات'!$E:$E)","v":0},{"$f":"SUMIF('التبرعات والرعايات الرسمية'!$L:$L,\"=\"&($A26&TEXT(D$4,\"mmm-yy\")),'التبرعات والرعايات الرسمية'!$D:$D)+SUMIF('ملخص مفصل بالمصروفات'!$J:$J,\"=\"&($A26&TEXT(D$4,\"mmm-yy\")),'ملخص مفصل بالمصروفات'!$E:$E)","v":{"v":2500,"d":"ر.س2,500.00"}},{"$f":"SUMIF('التبرعات والرعايات الرسمية'!$L:$L,\"=\"&($A26&TEXT(E$4,\"mmm-yy\")),'التبرعات والرعايات الرسمية'!$D:$D)+SUMIF('ملخص مفصل بالمصروفات'!$J:$J,\"=\"&($A26&TEXT(E$4,\"mmm-yy\")),'ملخص مفصل بالمصروفات'!$E:$E)","v":0},{"$f":"SUMIF('التبرعات والرعايات الرسمية'!$L:$L,\"=\"&($A26&TEXT(F$4,\"mmm-yy\")),'التبرعات والرعايات الرسمية'!$D:$D)+SUMIF('ملخص مفصل بالمصروفات'!$J:$J,\"=\"&($A26&TEXT(F$4,\"mmm-yy\")),'ملخص مفصل بالمصروفات'!$E:$E)","v":0},{"$f":"SUMIF('التبرعات والرعايات الرسمية'!$L:$L,\"=\"&($A26&TEXT(G$4,\"mmm-yy\")),'التبرعات والرعايات الرسمية'!$D:$D)+SUMIF('ملخص مفصل بالمصروفات'!$J:$J,\"=\"&($A26&TEXT(G$4,\"mmm-yy\")),'ملخص مفصل بالمصروفات'!$E:$E)","v":0},{"$f":"SUMIF('التبرعات والرعايات الرسمية'!$L:$L,\"=\"&($A26&TEXT(H$4,\"mmm-yy\")),'التبرعات والرعايات الرسمية'!$D:$D)+SUMIF('ملخص مفصل بالمصروفات'!$J:$J,\"=\"&($A26&TEXT(H$4,\"mmm-yy\")),'ملخص مفصل بالمصروفات'!$E:$E)","v":0},{"$f":"SUMIF('التبرعات والرعايات الرسمية'!$L:$L,\"=\"&($A26&TEXT(I$4,\"mmm-yy\")),'التبرعات والرعايات الرسمية'!$D:$D)+SUMIF('ملخص مفصل بالمصروفات'!$J:$J,\"=\"&($A26&TEXT(I$4,\"mmm-yy\")),'ملخص مفصل بالمصروفات'!$E:$E)","v":0},{"$f":"SUMIF('التبرعات والرعايات الرسمية'!$L:$L,\"=\"&($A26&TEXT(J$4,\"mmm-yy\")),'التبرعات والرعايات الرسمية'!$D:$D)+SUMIF('ملخص مفصل بالمصروفات'!$J:$J,\"=\"&($A26&TEXT(J$4,\"mmm-yy\")),'ملخص مفصل بالمصروفات'!$E:$E)","v":0},{"$f":"SUMIF('التبرعات والرعايات الرسمية'!$L:$L,\"=\"&($A26&TEXT(K$4,\"mmm-yy\")),'التبرعات والرعايات الرسمية'!$D:$D)+SUMIF('ملخص مفصل بالمصروفات'!$J:$J,\"=\"&($A26&TEXT(K$4,\"mmm-yy\")),'ملخص مفصل بالمصروفات'!$E:$E)","v":0},{"$f":"SUMIF('التبرعات والرعايات الرسمية'!$L:$L,\"=\"&($A26&TEXT(L$4,\"mmm-yy\")),'التبرعات والرعايات الرسمية'!$D:$D)+SUMIF('ملخص مفصل بالمصروفات'!$J:$J,\"=\"&($A26&TEXT(L$4,\"mmm-yy\")),'ملخص مفصل بالمصروفات'!$E:$E)","v":0},{"$f":"SUMIF('التبرعات والرعايات الرسمية'!$L:$L,\"=\"&($A26&TEXT(M$4,\"mmm-yy\")),'التبرعات والرعايات الرسمية'!$D:$D)+SUMIF('ملخص مفصل بالمصروفات'!$J:$J,\"=\"&($A26&TEXT(M$4,\"mmm-yy\")),'ملخص مفصل بالمصروفات'!$E:$E)","v":0},{"$f":"SUMIF('التبرعات والرعايات الرسمية'!$L:$L,\"=\"&($A26&TEXT(N$4,\"mmm-yy\")),'التبرعات والرعايات الرسمية'!$D:$D)+SUMIF('ملخص مفصل بالمصروفات'!$J:$J,\"=\"&($A26&TEXT(N$4,\"mmm-yy\")),'ملخص مفصل بالمصروفات'!$E:$E)","v":0},{"$f":"SUM(C26:N26)","v":{"v":2500,"d":"ر.س2,500.00"}}]
[]
[12000,"الرعايات الرسمية",{"$f":"SUMIF('التبرعات والرعايات الرسمية'!$L:$L,\"=\"&($A28&TEXT(C$4,\"mmm-yy\")),'التبرعات والرعايات الرسمية'!$D:$D)+SUMIF('ملخص مفصل بالمصروفات'!$J:$J,\"=\"&($A28&TEXT(C$4,\"mmm-yy\")),'ملخص مفصل بالمصروفات'!$E:$E)","v":{"v":1000,"d":"ر.س1,000.00"}},{"$f":"SUMIF('التبرعات والرعايات الرسمية'!$L:$L,\"=\"&($A28&TEXT(D$4,\"mmm-yy\")),'التبرعات والرعايات الرسمية'!$D:$D)+SUMIF('ملخص مفصل بالمصروفات'!$J:$J,\"=\"&($A28&TEXT(D$4,\"mmm-yy\")),'ملخص مفصل بالمصروفات'!$E:$E)","v":0},{"$f":"SUMIF('التبرعات والرعايات الرسمية'!$L:$L,\"=\"&($A28&TEXT(E$4,\"mmm-yy\")),'التبرعات والرعايات الرسمية'!$D:$D)+SUMIF('ملخص مفصل بالمصروفات'!$J:$J,\"=\"&($A28&TEXT(E$4,\"mmm-yy\")),'ملخص مفصل بالمصروفات'!$E:$E)","v":0},{"$f":"SUMIF('التبرعات والرعايات الرسمية'!$L:$L,\"=\"&($A28&TEXT(F$4,\"mmm-yy\")),'التبرعات والرعايات الرسمية'!$D:$D)+SUMIF('ملخص مفصل بالمصروفات'!$J:$J,\"=\"&($A28&TEXT(F$4,\"mmm-yy\")),'ملخص مفصل بالمصروفات'!$E:$E)","v":0},{"$f":"SUMIF('التبرعات والرعايات الرسمية'!$L:$L,\"=\"&($A28&TEXT(G$4,\"mmm-yy\")),'التبرعات والرعايات الرسمية'!$D:$D)+SUMIF('ملخص مفصل بالمصروفات'!$J:$J,\"=\"&($A28&TEXT(G$4,\"mmm-yy\")),'ملخص مفصل بالمصروفات'!$E:$E)","v":0},{"$f":"SUMIF('التبرعات والرعايات الرسمية'!$L:$L,\"=\"&($A28&TEXT(H$4,\"mmm-yy\")),'التبرعات والرعايات الرسمية'!$D:$D)+SUMIF('ملخص مفصل بالمصروفات'!$J:$J,\"=\"&($A28&TEXT(H$4,\"mmm-yy\")),'ملخص مفصل بالمصروفات'!$E:$E)","v":0},{"$f":"SUMIF('التبرعات والرعايات الرسمية'!$L:$L,\"=\"&($A28&TEXT(I$4,\"mmm-yy\")),'التبرعات والرعايات الرسمية'!$D:$D)+SUMIF('ملخص مفصل بالمصروفات'!$J:$J,\"=\"&($A28&TEXT(I$4,\"mmm-yy\")),'ملخص مفصل بالمصروفات'!$E:$E)","v":0},{"$f":"SUMIF('التبرعات والرعايات الرسمية'!$L:$L,\"=\"&($A28&TEXT(J$4,\"mmm-yy\")),'التبرعات والرعايات الرسمية'!$D:$D)+SUMIF('ملخص مفصل بالمصروفات'!$J:$J,\"=\"&($A28&TEXT(J$4,\"mmm-yy\")),'ملخص مفصل بالمصروفات'!$E:$E)","v":0},{"$f":"SUMIF('التبرعات والرعايات الرسمية'!$L:$L,\"=\"&($A28&TEXT(K$4,\"mmm-yy\")),'التبرعات والرعايات الرسمية'!$D:$D)+SUMIF('ملخص مفصل بالمصروفات'!$J:$J,\"=\"&($A28&TEXT(K$4,\"mmm-yy\")),'ملخص مفصل بالمصروفات'!$E:$E)","v":0},{"$f":"SUMIF('التبرعات والرعايات الرسمية'!$L:$L,\"=\"&($A28&TEXT(L$4,\"mmm-yy\")),'التبرعات والرعايات الرسمية'!$D:$D)+SUMIF('ملخص مفصل بالمصروفات'!$J:$J,\"=\"&($A28&TEXT(L$4,\"mmm-yy\")),'ملخص مفصل بالمصروفات'!$E:$E)","v":0},{"$f":"SUMIF('التبرعات والرعايات الرسمية'!$L:$L,\"=\"&($A28&TEXT(M$4,\"mmm-yy\")),'التبرعات والرعايات الرسمية'!$D:$D)+SUMIF('ملخص مفصل بالمصروفات'!$J:$J,\"=\"&($A28&TEXT(M$4,\"mmm-yy\")),'ملخص مفصل بالمصروفات'!$E:$E)","v":0},{"$f":"SUMIF('التبرعات والرعايات الرسمية'!$L:$L,\"=\"&($A28&TEXT(N$4,\"mmm-yy\")),'التبرعات والرعايات الرسمية'!$D:$D)+SUMIF('ملخص مفصل بالمصروفات'!$J:$J,\"=\"&($A28&TEXT(N$4,\"mmm-yy\")),'ملخص مفصل بالمصروفات'!$E:$E)","v":0},{"$f":"SUM(C28:N28)","v":{"v":1000,"d":"ر.س1,000.00"}}]
[]
[null,"الإجمالي",{"$f":"SUM(C6:C28)","v":{"v":4250.75,"d":"ر.س4,250.75"}},{"v":2500,"d":"ر.س2,500.00"},0,0,0,0,0,0,0,0,0,0,{"v":6750.75,"d":"ر.س6,750.75"}]

{"sheet":"ملخص مفصل بالمصروفات","index":2,"n_rows":103,"n_cols":10,"rows_kept":103}
["رمز دفتر الأستاذ العام","تاريخ الفاتورة","رقم الفاتورة","مطلوب من قِبل"," مبلغ الشيك ","المستفيد","استخدام الشيك","أسلوب التوزيع","تاريخ الملف","الحقل الأساسي المنشئ"]
[1000,38353,100,"سيد عباس",{"v":750.75,"d":"ر.س750.75"},"الحمام الزاجل للخدمات البريدية ","أجهزة بريدية","بالبريد",38356,{"$f":"A2&TEXT(B2,\"mmm-yy\")","v":"1000Jan-05"}]
[7000,"2005-01-15",101,"مهدي الفاخوري",{"v":2500,"d":"ر.س2,500.00"},"المتحدة للبرمجيات ","جهازا كمبيوتر سطح مكتب","بالائتمان",38372,"7000Jan-05"]
[{"$nulls":9},"Jan-00"]
[{"$nulls":9},"Jan-00"]
[{"$nulls":9},"Jan-00"]
[{"$nulls":9},"Jan-00"]
[{"$nulls":9},"Jan-00"]
[{"$nulls":9},"Jan-00"]
[{"$nulls":9},"Jan-00"]
[{"$nulls":9},"Jan-00"]
[{"$nulls":9},"Jan-00"]
[{"$nulls":9},"Jan-00"]
[{"$nulls":9},"Jan-00"]
[{"$nulls":9},"Jan-00"]
[{"$nulls":9},"Jan-00"]
[{"$nulls":9},"Jan-00"]
[{"$nulls":9},"Jan-00"]
[{"$nulls":9},"Jan-00"]
[{"$nulls":9},"Jan-00"]
[{"$nulls":9},"Jan-00"]
[{"$nulls":9},"Jan-00"]
[{"$nulls":9},"Jan-00"]
[{"$nulls":9},"Jan-00"]
[{"$nulls":9},"Jan-00"]
[{"$nulls":9},"Jan-00"]
[{"$nulls":9},"Jan-00"]
[{"$nulls":9},"Jan-00"]
[{"$nulls":9},"Jan-00"]
[{"$nulls":9},"Jan-00"]
[{"$nulls":9},{"$f":"A31&TEXT(B31,\"         \")","v":"         "}]
[{"$nulls":9},{"$f":"A32&TEXT(B32,\"mmm-yy\")","v":"Jan-00"}]
[{"$nulls":9},"Jan-00"]
[{"$nulls":9},"Jan-00"]
[{"$nulls":9},"Jan-00"]
[{"$nulls":9},"Jan-00"]
[{"$nulls":9},"Jan-00"]
[{"$nulls":9},"Jan-00"]
[{"$nulls":9},"Jan-00"]
[{"$nulls":9},"Jan-00"]
[{"$nulls":9},"Jan-00"]
[{"$nulls":9},"Jan-00"]
[{"$nulls":9},"Jan-00"]
[{"$nulls":9},"Jan-00"]
[{"$nulls":9},"Jan-00"]
[{"$nulls":9},"Jan-00"]
[{"$nulls":9},"Jan-00"]
[{"$nulls":9},"Jan-00"]
[{"$nulls":9},"Jan-00"]
[{"$nulls":9},"Jan-00"]
[{"$nulls":9},"Jan-00"]
[{"$nulls":9},"Jan-00"]
[{"$nulls":9},"Jan-00"]
[{"$nulls":9},"Jan-00"]
[{"$nulls":9},"Jan-00"]
[{"$nulls":9},"Jan-00"]
[{"$nulls":9},"Jan-00"]
[{"$nulls":9},"Jan-00"]
[{"$nulls":9},"Jan-00"]
[{"$nulls":9},"Jan-00"]
[{"$nulls":9},"Jan-00"]
[{"$nulls":9},"Jan-00"]
[{"$nulls":9},"Jan-00"]
[{"$nulls":9},"Jan-00"]
[{"$nulls":9},"Jan-00"]
[{"$nulls":9},"Jan-00"]
[{"$nulls":9},{"$f":"A67&TEXT(B67,\"         \")","v":"         "}]
[{"$nulls":9},{"$f":"A68&TEXT(B68,\"mmm-yy\")","v":"Jan-00"}]
[{"$nulls":9},"Jan-00"]
[{"$nulls":9},"Jan-00"]
[{"$nulls":9},"Jan-00"]
[{"$nulls":9},"Jan-00"]
[{"$nulls":9},"Jan-00"]
[{"$nulls":9},"Jan-00"]
[{"$nulls":9},"Jan-00"]
[{"$nulls":9},"Jan-00"]
[{"$nulls":9},"Jan-00"]
[{"$nulls":9},"Jan-00"]
[{"$nulls":9},"Jan-00"]
[{"$nulls":9},"Jan-00"]
[{"$nulls":9},"Jan-00"]
[{"$nulls":9},"Jan-00"]
[{"$nulls":9},"Jan-00"]
[{"$nulls":9},"Jan-00"]
[{"$nulls":9},"Jan-00"]
[{"$nulls":9},"Jan-00"]
[{"$nulls":9},"Jan-00"]
[{"$nulls":9},"Jan-00"]
[{"$nulls":9},"Jan-00"]
[{"$nulls":9},"Jan-00"]
[{"$nulls":9},"Jan-00"]
[{"$nulls":9},"Jan-00"]
[{"$nulls":9},"Jan-00"]
[{"$nulls":9},"Jan-00"]
[{"$nulls":9},"Jan-00"]
[{"$nulls":9},"Jan-00"]
[{"$nulls":9},"Jan-00"]
[{"$nulls":9},"Jan-00"]
[{"$nulls":9},"Jan-00"]
[{"$nulls":9},"Jan-00"]
[{"$nulls":9},"Jan-00"]
[{"$nulls":9},"Jan-00"]
[{"$nulls":9},"Jan-00"]

{"sheet":"التبرعات والرعايات الرسمية","index":3,"n_rows":109,"n_cols":12,"rows_kept":109}
["رمز دفتر الأستاذ العام","تاريخ إصدار الشيك المطلوب","مطلوب من قِبل"," مبلغ الشيك "," مساهمة العام السابق ","المستفيد","مستخدم لأجل","توقيعه بواسطة","الفئة","أسلوب التوزيع","تاريخ الملف","الحقل الأساسي المنشئ"]
[12000,38372,"فريد سيد",{"v":1000,"d":"ر.س1,000.00"},0,"كلية الفنون الجميلة ","المنح الدراسية","تامر الحلو","الآداب","الشيك",38382,{"$f":"A2&TEXT(B2,\"mmm-yy\")","v":"12000Jan-05"}]
[11000,38398,"فريد سيد",{"v":2500,"d":"ر.س2,500.00"},0,"ألعاب المستقبل ","الجماعة","أِشرف سمير","المجتمع","الشيك",38412,"11000Feb-05"]
[{"$nulls":11},"Jan-00"]
[{"$nulls":11},"Jan-00"]
[{"$nulls":11},"Jan-00"]
[{"$nulls":11},"Jan-00"]
[{"$nulls":11},"Jan-00"]
[{"$nulls":11},"Jan-00"]
[{"$nulls":11},"Jan-00"]
[{"$nulls":11},"Jan-00"]
[{"$nulls":11},"Jan-00"]
[{"$nulls":11},"Jan-00"]
[{"$nulls":11},"Jan-00"]
[{"$nulls":11},"Jan-00"]
[{"$nulls":11},"Jan-00"]
[{"$nulls":11},"Jan-00"]
[{"$nulls":11},"Jan-00"]
[{"$nulls":11},"Jan-00"]
[{"$nulls":11},"Jan-00"]
[{"$nulls":11},"Jan-00"]
[{"$nulls":11},"Jan-00"]
[{"$nulls":11},"Jan-00"]
[{"$nulls":11},"Jan-00"]
[{"$nulls":11},"Jan-00"]
[{"$nulls":11},"Jan-00"]
[{"$nulls":11},"Jan-00"]
[{"$nulls":11},"Jan-00"]
[{"$nulls":11},"Jan-00"]
[{"$nulls":11},"Jan-00"]
[{"$nulls":11},"Jan-00"]
[{"$nulls":11},"Jan-00"]
[{"$nulls":11},"Jan-00"]
[{"$nulls":11},{"$f":"A34&TEXT(B34,\"mmm-yy\")","v":"Jan-00"}]
[{"$nulls":11},"Jan-00"]
[{"$nulls":11},"Jan-00"]
[{"$nulls":11},"Jan-00"]
[{"$nulls":11},"Jan-00"]
[{"$nulls":11},"Jan-00"]
[{"$nulls":11},"Jan-00"]
[{"$nulls":11},"Jan-00"]
[{"$nulls":11},"Jan-00"]
[{"$nulls":11},"Jan-00"]
[{"$nulls":11},"Jan-00"]
[{"$nulls":11},"Jan-00"]
[{"$nulls":11},"Jan-00"]
[{"$nulls":11},"Jan-00"]
[{"$nulls":11},"Jan-00"]
[{"$nulls":11},"Jan-00"]
[{"$nulls":11},"Jan-00"]
[{"$nulls":11},"Jan-00"]
[{"$nulls":11},"Jan-00"]
[{"$nulls":11},"Jan-00"]
[{"$nulls":11},{"$f":"A54&TEXT(B54,\"         \")","v":"         "}]
[{"$nulls":11},{"$f":"A55&TEXT(B55,\"mmm-yy\")","v":"Jan-00"}]
[{"$nulls":11},"Jan-00"]
[{"$nulls":11},"Jan-00"]
[{"$nulls":11},"Jan-00"]
[{"$nulls":11},"Jan-00"]
[{"$nulls":11},"Jan-00"]
[{"$nulls":11},"Jan-00"]
[{"$nulls":11},"Jan-00"]
[{"$nulls":11},"Jan-00"]
[{"$nulls":11},"Jan-00"]
[{"$nulls":11},"Jan-00"]
[{"$nulls":11},"Jan-00"]
[{"$nulls":11},"Jan-00"]
[{"$nulls":11},"Jan-00"]
[{"$nulls":11},"Jan-00"]
[{"$nulls":11},"Jan-00"]
[{"$nulls":11},"Jan-00"]
[{"$nulls":11},"Jan-00"]
[{"$nulls":11},"Jan-00"]
[{"$nulls":11},"Jan-00"]
[{"$nulls":11},"Jan-00"]
[{"$nulls":11},"Jan-00"]
[{"$nulls":11},"Jan-00"]
[{"$nulls":11},"Jan-00"]
[{"$nulls":11},"Jan-00"]
[{"$nulls":11},"Jan-00"]
[{"$nulls":11},"Jan-00"]
[{"$nulls":11},"Jan-00"]
[{"$nulls":11},"Jan-00"]
[{"$nulls":11},{"$f":"A84&TEXT(B84,\"         \")","v":"         "}]
[{"$nulls":11},{"$f":"A85&TEXT(B85,\"mmm-yy\")","v":"Jan-00"}]
[{"$nulls":11},"Jan-00"]
[{"$nulls":11},"Jan-00"]
[{"$nulls":11},"Jan-00"]
[{"$nulls":11},"Jan-00"]
[{"$nulls":11},"Jan-00"]
[{"$nulls":11},"Jan-00"]
[{"$nulls":11},"Jan-00"]
[{"$nulls":11},"Jan-00"]
[{"$nulls":11},"Jan-00"]
[{"$nulls":11},"Jan-00"]
[{"$nulls":11},"Jan-00"]
[{"$nulls":11},"Jan-00"]
[{"$nulls":11},"Jan-00"]
[{"$nulls":11},"Jan-00"]
[{"$nulls":11},"Jan-00"]
[{"$nulls":11},"Jan-00"]
[{"$nulls":11},"Jan-00"]
[{"$nulls":11},"Jan-00"]
[{"$nulls":11},"Jan-00"]
[{"$nulls":11},"Jan-00"]
[{"$nulls":11},"Jan-00"]
[{"$nulls":11},"Jan-00"]
[{"$nulls":11},"Jan-00"]
[{"$nulls":11},"Jan-00"]